Cogmind - Beta 16 @@@ ROGUE MODE // 2025.10.25 @ 14:31:38 Player: celerysam Result: Destroyed by U4-0BR(R) with Subdweller Laser Performance ------------- Evolutions (0) 0 Regions Visited (2) 400 Robots Destroyed (14) 70 Value Destroyed (385) 385 Prototype IDs (0) 0 Alien Tech Used (0) 0 Bonus (0) 0 TOTAL SCORE: 855 Bonus ------- None Cogmind --------- Core Integrity 0/250 Matter 274/300 Energy 89/100 System Corruption 3% Temperature Cool (6) Movement Rolling (175) Ox5 Location -10/Subcaves Parts ------- > --- POWER (1) -------- (None) > --- PROPULSION (2) --- Compact Wheel > --- UTILITY (2) ------ Huge Storage Unit Makeshift Kinetic Plating > --- WEAPON (2) ------- Barrage Gun Light Cannon > --- INVENTORY (25) --- Subdweller Power Source Wheel Compact Wheel Compact Wheel Subdweller Monowheel Subdweller Monowheel Improved Hover Unit Improved Hover Unit Improved Hover Unit Improved Hover Unit Scrap Shield Light EM Pulse Cannon Light EM Pulse Cannon Subdweller Beam Cannon Assault Rifle Assault Rifle Subdweller Machine Gun Grenade Launcher Mining Claw Peak State ------------ > --- POWER ------------ Light Ion Engine > --- PROPULSION ------- Wheel Compact Wheel > --- UTILITY ---------- Huge Storage Unit Makeshift Kinetic Plating > --- WEAPON ----------- Barrage Gun Light Cannon > --- INVENTORY -------- Subdweller Power Source Wheel Compact Wheel Compact Wheel Subdweller Monowheel Subdweller Monowheel Improved Hover Unit Improved Hover Unit Improved Hover Unit Improved Hover Unit Scrap Shield Light EM Pulse Cannon Light EM Pulse Cannon Subdweller Beam Cannon Assault Rifle Assault Rifle Subdweller Machine Gun Grenade Launcher Mining Claw [Rating: 15] Favorites ----------- Power Ion Engine Engine Ion Engine Propulsion Wheel Leg Aluminum Leg Wheel Wheel Utility Huge Storage Unit Device Weight Redist. System Storage Huge Storage Unit Processor Transport Network Coupler Protection Makeshift Kinetic Plating Weapon Light Cannon Energy Gun EM Shotgun Ballistic Gun Barrage Gun Ballistic Cannon Light Cannon Launcher Grenade Launcher Slashing Weapon Mining Claw Build | -11 -10 -10 ------- Run | Yrd Mat Sub Slots Evolved . | . . . Power . | . . . Propulsion . | . . . Utility . | . . . Weapon . | . . . Parts Attached 22 | 8 6 8 Power 3 | 1 1 1 Engine 3 | 1 1 1 Core . | . . . Reactor . | . . . Propulsion 5 | 4 . 1 Treads . | . . . Leg 2 | 2 . . Wheel 3 | 2 . 1 Hover . | . . . Flight . | . . . Utility 5 | 1 3 1 Device 1 | . 1 . Storage 2 | 1 1 . Processor 1 | . 1 . Hackware . | . . . Protection 1 | . . 1 Artifact . | . . . Weapon 9 | 2 2 5 Energy Gun 3 | 1 1 1 Energy Cannon . | . . . Ballistic Gun 3 | 1 . 2 Ballistic Cannon 1 | . 1 . Launcher 1 | . . 1 Special Weapon . | . . . Impact Weapon . | . . . Slashing Weapon 1 | . . 1 Piercing Weapon . | . . . Special Melee Weapon . | . . . Unidentified Prototypes . | . . . Parts Lost 7 | . . 7 Power 2 | . . 2 Propulsion 2 | . . 2 Utility 1 | . . 1 Weapon 2 | . . 2 Highest Loss Streak 4 | . . 4 To Critical Strikes . | . . . Average Backups 14 | 4 11 17 Power . | . 1 . Propulsion 7 | 3 6 8 Utility . | . . . Weapon 5 | . 4 7 Tool/Special . | . . . Unused Backups 19 | . 3 16 Power 1 | . . 1 Propulsion 11 | . 2 9 Utility 1 | . . 1 Weapon 6 | . 1 5 Tool/Special . | . . . Average Slot Usage (%) 90 | . 98 82 Engine 10 | . 14 7 Leg 4 | . 9 . Wheel 20 | . 18 21 Storage 14 | . 14 14 Processor 6 | . 12 1 Protection 4 | . . 8 Energy Gun 7 | . 14 1 Ballistic Gun 8 | . 4 11 Ballistic Cannon 8 | . 9 7 Slashing Weapon 2 | . . 5 Peak Build Rating 15 | 6 10 15 Average Rating 9 | 4 8 11 On Entrance 5 | . 6 10 Avg Prop Armor Cover (%) . | . . . Naked Turns . | . . . Heaviest Build 96 | 11 91 96 Greatest Support 26 | 20 26 26 Greatest Overweight (x) 5 | . 4 5 Average Overweight (x) 2 | . 2 4 Largest Inventory Capacity 25 | 8 25 25 Average Capacity 21 | 6 18 25 Most Carried 20 | 6 16 20 Average Carried 14 | 4 11 17 Final Capacity 25 | 8 25 25 Final Carried 20 | 6 16 20 Class Distribution -------------------- 100% | Mutant Dominant Class ---------------- Mutant | -10/Materials Mutant | -10/Subcaves Resources | -11 -10 -10 ----------- Run | Yrd Mat Sub Matter Collected 664 | 192 101 371 Remotely . | . . . Salvage Created 419 | . 201 218 Parts 31 | . 18 13 Haulers Intercepted 1 | . 1 . Recyclers Shooed . | . . . Parts Field Recycled . | . . . Retrieved Matter . | . . . Parts Self-Destructed 11 | . . 11 Prevented . | . . . Parts Restored . | . . . Kills | -11 -10 -10 ------- Run | Yrd Mat Sub Combat Hostiles Destroyed 11 | . 5 6 Guns 3 | . 2 1 Cannons 4 | . 3 1 AOE 4 | . . 4 Classes Destroyed 5 | . 4 1 Hauler 1 | . 1 . Watcher 2 | . 2 . Swarmer 3 | . 3 . Grunt 2 | . 2 . Subdweller 6 | . . 6 Best Kill Streak 3 | . 3 2 Combat Bots Only 3 | . 3 2 Max Kills in Single Turn 2 | . 1 2 Gunslinging . | . . . Exploded 2 | . . 2 Melee . | . . . Uniques/NPCs Destroyed . | . . . Combat | -11 -10 -10 -------- Run | Yrd Mat Sub Hostile Shots Fired 73 | . 32 41 Missed 20 | . 13 7 Hits 53 | . 19 34 Projectile 53 | . 19 34 Critical Strikes 2 | . . 2 Damage Taken 946 | . 169 777 Core 251 | . 56 195 Absorbed by Shields . | . . . Ignored by Resistances 11 | . . 11 Core Remaining (%) 100 | 100 . . Volleys Fired 39 | . 20 19 Largest 2 | . 2 2 Hottest 75 | . 75 75 Shots Fired 76 | . 39 37 Gun 41 | . 23 18 Cannon 32 | . 16 16 Launcher 3 | . . 3 Special . | . . . Kinetic 48 | . 20 28 Thermal 4 | . 4 . Explosive 3 | . . 3 Electromagnetic 21 | . 15 6 Robot Hit Streak 9 | . 4 9 Robot Miss Streak 6 | . 6 3 Penetration Max . | . . . Secondary Targets . | . . . Shots Hit Robots 46 | . 20 26 Core Hits 25 | . 13 12 Critical Kills . | . . . Critical Parts Destroyed . | . . . Critical Strikes . | . . . Melee Attacks 11 | . . 11 Impact . | . . . Slashing 11 | . . 11 Piercing . | . . . Sneak Attacks . | . . . Combat Hostiles . | . . . Follow-up Attacks . | . . . Damage Inflicted 940 | . 337 603 Guns 363 | . 168 195 Cannons 304 | . 156 148 Explosions 260 | . . 260 Melee . | . . . Ramming 13 | . 13 . Kinetic 459 | . 172 287 Thermal 13 | . 13 . Explosive 260 | . . 260 Electromagnetic 195 | . 139 56 Impact . | . . . Slashing . | . . . Piercing . | . . . Highest Corruption 3 | . 3 3 Average Corruption 2 | . 2 3 Corruption Purged . | . . . Corruption Blocked . | . . . Effects 24 | . 14 10 Message Errors 6 | . 5 1 Matter Fused 5 | . 1 4 Heat Flow Errors 3 | . 3 . Energy Discharges 1 | . 1 . Parts Rejected 1 | . . 1 Data Loss (minor) 5 | . 3 2 Misfires 2 | . . 2 Weapon Failures 1 | . 1 . Overload Shots . | . . . Overflow Damage . | . . . Projectiles . | . . . Explosions . | . . . Melee . | . . . Knockbacks 5 | . 1 4 Impact . | . . . Kinetic 5 | . 1 4 Secondary . | . . . Self-Inflicted Damage 48 | . 6 42 Shots 3 | . . 3 Rammed 1 | . 1 . Targets Rammed 1 | . 1 . Kicked . | . . . Crushed . | . . . Highest Temperature 276 | . 276 14 Average Temperature 64 | . 66 7 Received Heat Transfer 90 | . 15 75 Siege Activations . | . . . Martial Activations . | . . . Shielding Activations . | . . . Robots Disrupted . | . . . Combat Hostiles . | . . . Robots Corrupted . | . . . Combat Hostiles . | . . . Parts Fried . | . . . Impact Corruptions . | . . . Robots Melted . | . . . Combat Hostiles . | . . . Parts Melted . | . . . Heat Transferred 37 | . 37 . Parts Sabotaged . | . . . Parts Stolen . | . . . Parts Stripped . | . . . Power Chain Reactions . | . . . Alert | -11 -10 -10 ------- Run | Yrd Mat Sub Maximum Alert Level . | . . . Low Security (%) 100 | 100 100 . Level 1 . | . . . Level 2 . | . . . Level 3 . | . . . Level 4 . | . . . Level 5 . | . . . High Security . | . . . Max Security . | . . . Peak Influence 62 | . 62 . Initial . | . . . Average 10 | . 11 . Influence Increases 141 | . 141 . Destroy 0b10 Robot/C 100 | . 100 . Destroy 0b10 Robot/NC 15 | . 15 . Destroy Leader 26 | . 26 . Influence Decreases 141 | . 141 . Time Decay 141 | . 141 . Squads Dispatched 1 | . 1 . Investigation 1 | . 1 . Extermination . | . . . Reinforcement . | . . . Assault . | . . . Garrison . | . . . Intercept . | . . . Searches Triggered . | . . . Construction Impeded . | . . . Haulers Reinforced . | . . . Active Scanning Responses . | . . . Cargo Convoy Interrupts . | . . . Stealth | -11 -10 -10 --------- Run | Yrd Mat Sub Distress Signals . | . . . Communications Jammed . | . . . Distress Signals . | . . . Times Spotted 16 | . 9 7 Peak Tracking Total 3 | . 3 2 Tactical Retreats . | . . . Traps | -11 -10 -10 ------- Run | Yrd Mat Sub Traps Triggered 3 | . 3 . Indirectly . | . . . Trap Hack Attempts . | . . . Triggered . | . . . Disarmed . | . . . Reprogrammed . | . . . Reused . | . . . Traps Extracted . | . . . Installed . | . . . Triggered . | . . . Machines | -11 -10 -10 ---------- Run | Yrd Mat Sub Machines Disabled . | . . . Max in Single Turn . | . . . Machines Repaired . | . . . Machines Dismantled . | . . . Machines Sabotaged . | . . . Overloaded Fab Kills . | . . . Hacking | -11 -10 -10 --------- Run | Yrd Mat Sub Machines Accessed . | . . . Terminals . | . . . Fabricators . | . . . Repair Stations . | . . . Recycling Units . | . . . Scanalyzers . | . . . Garrison Access . | . . . Total Hacks . | . . . Successful . | . . . Failed . | . . . Catastrophic . | . . . Database Lockouts . | . . . Manual . | . . . Terminals . | . . . Fabricators . | . . . Repair Stations . | . . . Recycling Units . | . . . Scanalyzers . | . . . Garrison Access . | . . . Terminal Hacks . | . . . Fabricator Hacks . | . . . Repair Station Hacks . | . . . Recycling Unit Hacks . | . . . Scanalyzer . | . . . Garrison Access Hacks . | . . . Unauthorized Hacks . | . . . Terminals . | . . . Fabricators . | . . . Repair Stations . | . . . Recycling Units . | . . . Scanalyzers . | . . . Garrison Access . | . . . Data Cores Recovered . | . . . Used . | . . . Hacking Detections . | . . . Full Trace Events . | . . . Feedback Events . | . . . Feedback Blocked . | . . . Robot Schematics Acquired . | . . . Robots Built . | . . . Authchips . | . . . Time . | . . . Total Robot Build Rating . | . . . Part Schematics Acquired . | . . . Parts Built . | . . . Authchips . | . . . Time . | . . . Total Part Build Rating . | . . . Part Studies Acquired . | . . . Parts Repaired . | . . . Time . | . . . Parts Recycled . | . . . Recycled Matter . | . . . Retrieved Matter . | . . . Retrieved Components . | . . . Parts Scanalyzed . | . . . Part Schematics Acquired . | . . . Parts Damaged . | . . . Bothacking | -11 -10 -10 ------------ Run | Yrd Mat Sub Used RIF Installer . | . . . Robots Hacked . | . . . Non-combat . | . . . Combat . | . . . Robot Hacks Applied . | . . . Relay Couplers Released . | . . . Fabnet Peak Effective % . | . . . Robots Rewired . | . . . Allies Hacked . | . . . Hacks Repelled . | . . . Allies | -11 -10 -10 -------- Run | Yrd Mat Sub Total Allies . | . . . Largest Group . | . . . Highest-Rated Group . | . . . Highest-Rated Ally . | . . . Total Orders . | . . . Ally Attacks . | . . . Total Damage . | . . . Kills . | . . . Allies Corrupted . | . . . Allies Melted . | . . . Intel | -11 -10 -10 ------- Run | Yrd Mat Sub Active Infowar (turns) 823 | . 758 65 T.N.C. 823 | . 758 65 Robot Analysis Total . | . . . Derelict Logs Recovered . | . . . Drone Launches . | . . . Drone Recoveries . | . . . Exploration | -11 -10 -10 ------------- Run | Yrd Mat Sub Turns Passed 1782 | 63 865 854 Spaces Moved 1056 | 44 525 487 Core 3 | 3 . . Treads . | . . . Legs 234 | 27 207 . Wheels 819 | 14 318 487 Hover . | . . . Flight . | . . . Fastest Speed 50 | 50 80 135 Average Speed 137 | 102 125 153 Slowest Speed 175 | 120 140 175 Overloaded Moves . | . . . Propulsion Burnouts . | . . . Robots Hopped . | . . . Potential Cave-ins . | . . . Cave-ins Triggered . | . . . Exploration Rate (%) 41 | 4 82 37 Regions Visited 2 Branch Regions 1 Pre-discovered Areas . | . . . Known Exits Taken . | . . . Unknown Exits Taken 2 | 1 1 . Scrap Searched 10 | . . 10 Spaces Dug 3 | . . 3 Terrain Destroyed 10 | . . 10 Melee . | . . . Projectile . | . . . AOE 10 | . . 10 Terrain Rammed . | . . . Walls Destroyed . | . . . Machines Disabled . | . . . Actions | -11 -10 -10 --------- Run | Yrd Mat Sub Total 1288 | 59 691 538 Wait 113 | . 113 . Move 1054 | 43 524 487 Hop . | . . . Pick Up 32 | 8 15 9 Fast Attach 8 | 4 4 . Attach 8 | 2 . 6 Detach . | . . . Swap 12 | 2 4 6 Drop 10 | . 10 . Fire 39 | . 20 19 Melee 11 | . . 11 Ram 1 | . 1 . Kick . | . . . Crush . | . . . Escape Stasis . | . . . Rewire . | . . . Trap . | . . . Miscellaneous . | . . . Route ------- -11/Scrapyard -10/Materials (discovered 5 exits: [*Mat x3] / [*Min] / [*Sub]) -10/Subcaves (discovered 1 exit: [*Scr]) History --------- Turn | Location | Event 11 | -11/Scrapyard | Discovered new exit (range 15) 64 | -11/Scrapyard | Entered Materials 116 | -10/Materials | Discovered new exit (range 8) 269 | -10/Materials | Discovered new exit (range 8) 314 | -10/Materials | Build established: Mutant 506 | -10/Materials | Discovered new exit (range 11) 596 | -10/Materials | Discovered new exit (range 9) 919 | -10/Materials | Discovered new exit (range 5) 929 | -10/Materials | Entered Subcaves 930 | -10/Subcaves | Approached by a straggling Scientist 986 | -10/Subcaves | Core integrity fell below 50% 1025 | -10/Subcaves | Lost 4 parts (1p1u2w) 1101 | -10/Subcaves | Scientist uncovered a shortcut to Scraptown 1228 | -10/Subcaves | Disturbed a concealed Subdweller 1242 | -10/Subcaves | Core integrity fell below 20% 1783 | -10/Subcaves | Destroyed by U4-0BR(R) with Subdweller Laser Last Messages --------------- 01426_ 71-XWB(R) destroyed. 01426_ PX-X53(R) destroyed. 01431_ The unstable cave ceiling collapses. 01436_ Acquired 1 matter. 01438_ Acquired 33 matter. 01457_ System corrupted: Matter fused (-10). 01531_ DG-WPH(u) tweaks Twisted Machinery. 01549_ System corrupted: Component data lost. 01571_ DG-WPH(u) builds Twisted Machinery. 01629_ System corrupted: Component data lost. 01654_ Searching scrap... 01654_ Found Sub. Beam Cannon. 01654_ Found Barrage Gun. 01654_ Found 34 Matter. 01655_ Acquired 34 matter. 01666_ Searching scrap... 01666_ Found Flamer. 01666_ Found 30 Matter. 01667_ Acquired 11 matter. 01782_ U4-0BR(R) knocked back. Map ----- +----------------------------------------------------+ | ????????????????????????????# ##?????????????????? | | ????????????????????????????## ##????????????????? | | ?????????????????????????????## #????????????????? | | ?????????????????????????????## #??###???????????? | | ????????????????????????????## ### ##??????????? | | ???????????????????????????## #??????????? | | ??????????????????????????## ## ##?????????? | | ?????????????????????????## #### #?????????? | | ????????????????????????## ##??### ##?????????? | | ???????????????????????## ###?????# #??????????? | | ???????????????????????# #??????# ?????????? | | ???????????????????????## #??????? ???????? | | ????????????????????????# #???????? #?????? | | ???????????????????????## #???????? #????? | | ???????????????????????# ##????????? #????? | | ???????????????????????# #?????????? ???? | | ???????????????????????# ##????????? ???? | | ???????????????????????# # ##????????? ????? | | ???????????????????????# ## #?????????? ????? | | ???????????????????????#### ##?????????????????? | | ????????????????????####?# ##????????????????? | | ????????????????????# ## #????????????????? | | ?????????????????##?# #????????????????? | | ????????????????## ## #????????????????? | | ???????????????## ????# ##???????????????? | | ???????????????# ???#@ #???????????????? | | ????????????????# ??# "######??????#????????? | | ???????????????## ??# ""#???????? % ???????? | | ???????????????# ### ####?? ???????? | | ???????????????# " "" # % #???????? | | ???????????????# " "" " % % #????????? | | ????????????????# ""R #????????? | | ????????????????# " ## #????????? | | ????????????????# "# "" ##?## ##????????? | | ???????????????# "" "" #????? ##?????????? | | ???????????????## " ### ##?????? ##??????????? | | ????????????????# "# ??####?????????#???????????? | | ???????????????# ""#????????????????????????????? | | ???????????????## "#?????????????????????????????? | | ????????????????# ??????????????????????????????? | | ????????????????? ???????????????????????????????? | | ?????????????????????????????????????????????????? | | ?????????????????????????????????????????????????? | | ?????????????????????????????????????????????????? | | ?????????????????????????????????????????????????? | | ?????????????????????????????????????????????????? | | ?????????????????????????????????????????????????? | | ?????????????????????????????????????????????????? | | ?????????????????????????????????????????????????? | | ?????????????????????????????????????????????????? | +----------------------------------------------------+ Best States ------------- Heat Dissipation 25 Energy Generation 10 Energy Capacity 250 Matter Stores 300 Matter Capacity 300 Sight Range 16 Terrain Scan Density 10 Additional Mass Support 6 Armor Coverage 100 Resistance: KI 10 Evasion (%) 55 Item Schematics ----------------- None Robot Schematics ------------------ None Fabricated ------------ Nothing Repaired ---------- Nothing Studied --------- None Alien Tech Used ----------------- None Achievements -------------- For Emergencies Only Nice Directions, Buddy Challenges ------------ None Game ------ Seed ReactionMetafiberTrap Manual? 0 Play Time 00:13:07 Cumulative 271.5 hours Start 2025.10.24 @ 20:55:47 End 2025.10.25 @ 14:31:38 Sessions 3 Manual Loads 0 Difficulty Rogue Special Mode None Game No. 427 Rogue 427 Adventurer 0 Explorer 0 Win Type - Total 1 Types 1/0/0/0/0/0/0/0/0/0 Lore% 64 Gallery% 62 Achievement% 25 Wizard Run 0 Options --------- Layout 1 ASCII 0 Keyboard 0 Movement Mouse Keybinds 0 Fullscreen 2 Font 24/Smallcaps Map View 50x35 Zoom Use 0% Tactical HUD 1 Map Filters NONE Filters NONE Steam 1 RUN: 48130d85-83ca-4714-8475-7871db46d9f9